[Event "Early-Titled-Tuesday-Blitz-June-18-2024"]
[Site "Chess.com"]
[Date "2024.06.18"]
[Round "4"]
[White "KRSilva"]
[Black "chess123456s"]
[Result "0-1"]
[WhiteElo "2398"]
[BlackElo "2613"]
[TimeControl "180+1"]
[EndTime "8:35:37 PDT"]
[Termination "chess123456s won by resignation"]

1. d4 {[%clk 0:03:00]} 1... Nf6 {[%clk 0:02:57.7]} 2. c4 {[%clk 0:02:59.6]} 2...
e6 {[%clk 0:02:57.3]} 3. Nc3 {[%clk 0:02:59.8]} 3... Bb4 {[%clk 0:02:56.5]} 4.
a3 {[%clk 0:02:57.1]} 4... Bxc3+ {[%clk 0:02:56.2]} 5. bxc3 {[%clk 0:02:58]}
5... c5 {[%clk 0:02:56]} 6. e3 {[%clk 0:02:55.3]} 6... Nc6 {[%clk 0:02:56.2]} 7.
Nf3 {[%clk 0:02:50.1]} 7... b6 {[%clk 0:02:55.9]} 8. d5 {[%clk 0:02:50.4]} 8...
Na5 {[%clk 0:02:55.5]} 9. d6 {[%clk 0:02:43.6]} 9... Ba6 {[%clk 0:02:54.6]} 10.
Qa4 {[%clk 0:02:41.3]} 10... Ne4 {[%clk 0:02:50.2]} 11. Bd3 {[%clk 0:02:37.7]}
11... Nxd6 {[%clk 0:02:47.7]} 12. e4 {[%clk 0:02:38.1]} 12... Bxc4 {[%clk
0:02:41.3]} 13. Bb1 {[%clk 0:02:26.9]} 13... Bb3 {[%clk 0:02:39.1]} 0-1

[Event "Early-Titled-Tuesday-Blitz-June-18-2024"]
[Site "Chess.com"]
[Date "2024.06.18"]
[Round "4"]
[White "JunjiCol"]
[Black "SHIVACalypso"]
[Result "0-1"]
[WhiteElo "2350"]
[BlackElo "2531"]
[TimeControl "180+1"]
[EndTime "8:35:39 PDT"]
[Termination "SHIVACalypso won by resignation"]

1. d4 {[%clk 0:03:00.9]} 1... Nf6 {[%clk 0:02:58.4]} 2. c4 {[%clk 0:02:58.9]}
2... d6 {[%clk 0:02:58.5]} 3. Nc3 {[%clk 0:02:57.5]} 3... e5 {[%clk 0:02:54.8]}
4. dxe5 {[%clk 0:02:54.9]} 4... dxe5 {[%clk 0:02:55.7]} 5. Qxd8+ {[%clk
0:02:54.6]} 5... Kxd8 {[%clk 0:02:56.6]} 6. Nf3 {[%clk 0:02:54.5]} 6... Nbd7
{[%clk 0:02:50.6]} 7. Bg5 {[%clk 0:02:53.5]} 7... Bb4 {[%clk 0:02:49.2]} 8.
O-O-O {[%clk 0:02:49.8]} 8... Bxc3 {[%clk 0:02:44]} 9. bxc3 {[%clk 0:02:50.7]}
9... Ke7 {[%clk 0:02:44.6]} 10. e3 {[%clk 0:02:49.7]} 10... h6 {[%clk
0:02:44.5]} 11. Bxf6+ {[%clk 0:02:48.9]} 11... Kxf6 {[%clk 0:02:45.4]} 12. Bd3
{[%clk 0:02:40.3]} 12... Nc5 {[%clk 0:02:45.2]} 13. Nd2 {[%clk 0:02:38.7]} 13...
Nxd3+ {[%clk 0:02:44.2]} 14. Kc2 {[%clk 0:02:38.9]} 14... Nc5 {[%clk 0:02:43.1]}
15. f4 {[%clk 0:02:39.1]} 15... Bf5+ {[%clk 0:02:42.3]} 16. Kb2 {[%clk
0:02:36.9]} 16... exf4 {[%clk 0:02:41.5]} 17. Rhf1 {[%clk 0:02:33.2]} 17... fxe3
{[%clk 0:02:37.1]} 18. Nf3 {[%clk 0:02:33.3]} 18... e2 {[%clk 0:02:37]} 0-1

[Event "Early-Titled-Tuesday-Blitz-June-18-2024"]
[Site "Chess.com"]
[Date "2024.06.18"]
[Round "4"]
[White "dianamirza"]
[Black "Guldona_2007"]
[Result "0-1"]
[WhiteElo "1791"]
[BlackElo "2257"]
[TimeControl "180+1"]
[EndTime "8:36:13 PDT"]
[Termination "Guldona_2007 won by resignation"]

1. e4 {[%clk 0:02:50.1]} 1... c5 {[%clk 0:02:59.9]} 2. Nf3 {[%clk 0:02:48.8]}
2... d6 {[%clk 0:02:58.5]} 3. d4 {[%clk 0:02:35.3]} 3... cxd4 {[%clk 0:02:58.5]}
4. Nxd4 {[%clk 0:02:36.2]} 4... Nf6 {[%clk 0:02:58.7]} 5. Nc3 {[%clk 0:02:35.5]}
5... Nc6 {[%clk 0:02:58.8]} 6. Bb5 {[%clk 0:02:32.8]} 6... Bd7 {[%clk
0:02:58.4]} 7. Nxc6 {[%clk 0:02:30.8]} 7... bxc6 {[%clk 0:02:58.5]} 8. Bd3
{[%clk 0:02:29.7]} 8... e5 {[%clk 0:02:57.6]} 9. O-O {[%clk 0:02:29.1]} 9... Be7
{[%clk 0:02:56.1]} 10. Be3 {[%clk 0:02:28.5]} 10... O-O {[%clk 0:02:55.3]} 11.
f3 {[%clk 0:02:29]} 11... d5 {[%clk 0:02:51.7]} 12. Ne2 {[%clk 0:02:25.2]} 12...
dxe4 {[%clk 0:02:39.3]} 13. Bxe4 {[%clk 0:02:19.4]} 13... Nxe4 {[%clk
0:02:38.6]} 14. fxe4 {[%clk 0:02:20.3]} 14... Bg4 {[%clk 0:02:33.5]} 15. h3
{[%clk 0:02:07.9]} 15... Qxd1 {[%clk 0:02:31.5]} 16. Raxd1 {[%clk 0:02:02.9]}
16... Bxe2 {[%clk 0:02:31.6]} 0-1

[Event "Early-Titled-Tuesday-Blitz-June-18-2024"]
[Site "Chess.com"]
[Date "2024.06.18"]
[Round "4"]
[White "Muifel"]
[Black "Ati1517"]
[Result "1-0"]
[WhiteElo "2452"]
[BlackElo "2016"]
[TimeControl "180+1"]
[EndTime "8:36:25 PDT"]
[Termination "Muifel won by checkmate"]

1. e4 {[%clk 0:02:54.6]} 1... c5 {[%clk 0:02:59.4]} 2. d4 {[%clk 0:02:54]} 2...
cxd4 {[%clk 0:02:59.1]} 3. c3 {[%clk 0:02:53.8]} 3... dxc3 {[%clk 0:03:00]} 4.
Nxc3 {[%clk 0:02:53.9]} 4... Nc6 {[%clk 0:03:00.3]} 5. Bc4 {[%clk 0:02:53.8]}
5... e6 {[%clk 0:03:00.4]} 6. Nf3 {[%clk 0:02:53.1]} 6... Bc5 {[%clk 0:02:58.9]}
7. O-O {[%clk 0:02:52.3]} 7... Nge7 {[%clk 0:02:58.9]} 8. Bg5 {[%clk 0:02:29]}
8... h6 {[%clk 0:02:57.3]} 9. Bh4 {[%clk 0:02:28.9]} 9... O-O {[%clk 0:02:56.1]}
10. e5 {[%clk 0:02:22.7]} 10... a6 {[%clk 0:02:52.1]} 11. Ne4 {[%clk 0:02:19.7]}
11... Ba7 {[%clk 0:02:51.5]} 12. Nd6 {[%clk 0:02:16.4]} 12... b5 {[%clk
0:02:48.7]} 13. Bd3 {[%clk 0:02:10.5]} 13... g5 {[%clk 0:02:47.3]} 14. Nxg5
{[%clk 0:02:08.7]} 14... hxg5 {[%clk 0:02:46.5]} 15. Qh5 {[%clk 0:01:59.6]}
15... Nf5 {[%clk 0:02:42.1]} 16. Bxg5 {[%clk 0:01:54.2]} 16... Qb6 {[%clk
0:02:36.7]} 17. Bf6 {[%clk 0:01:48.8]} 17... Nxe5 {[%clk 0:02:34.6]} 18. Qh8#
{[%clk 0:01:48.1]} 1-0

[Event "Early-Titled-Tuesday-Blitz-June-18-2024"]
[Site "Chess.com"]
[Date "2024.06.18"]
[Round "4"]
[White "annazero"]
[Black "GoltsevDmitry2000"]
[Result "0-1"]
[WhiteElo "2524"]
[BlackElo "2714"]
[TimeControl "180+1"]
[EndTime "8:36:37 PDT"]
[Termination "GoltsevDmitry2000 won by resignation"]

1. g3 {[%clk 0:03:00.9]} 1... h5 {[%clk 0:02:57.6]} 2. h4 {[%clk 0:03:00.3]}
2... d5 {[%clk 0:02:57.5]} 3. Bg2 {[%clk 0:02:59.9]} 3... c6 {[%clk 0:02:58.1]}
4. d4 {[%clk 0:02:59.7]} 4... Nf6 {[%clk 0:02:58.6]} 5. c4 {[%clk 0:03:00.3]}
5... g6 {[%clk 0:02:58.8]} 6. Nc3 {[%clk 0:02:59.4]} 6... dxc4 {[%clk
0:02:58.2]} 7. Nf3 {[%clk 0:02:56.1]} 7... Bg7 {[%clk 0:02:57.6]} 8. Ne5 {[%clk
0:02:56.2]} 8... Ng4 {[%clk 0:02:51.9]} 9. Nxg4 {[%clk 0:02:56.3]} 9... Bxg4
{[%clk 0:02:51.3]} 10. d5 {[%clk 0:02:51]} 10... O-O {[%clk 0:02:24.1]} 11. O-O
{[%clk 0:02:41.5]} 11... cxd5 {[%clk 0:02:07.4]} 12. Qxd5 {[%clk 0:02:39.2]}
12... Qxd5 {[%clk 0:02:05.7]} 13. Nxd5 {[%clk 0:02:37.2]} 13... Nc6 {[%clk
0:02:01.6]} 14. e4 {[%clk 0:02:22.6]} 14... e6 {[%clk 0:01:50.5]} 15. Be3 {[%clk
0:02:22.1]} 15... exd5 {[%clk 0:01:49.1]} 0-1

[Event "Early-Titled-Tuesday-Blitz-June-18-2024"]
[Site "Chess.com"]
[Date "2024.06.18"]
[Round "4"]
[White "jguerramzllo"]
[Black "Manukyan_Artak"]
[Result "1-0"]
[WhiteElo "2668"]
[BlackElo "2488"]
[TimeControl "180+1"]
[EndTime "8:37:03 PDT"]
[Termination "jguerramzllo won by resignation"]

1. e4 {[%clk 0:03:00.9]} 1... c6 {[%clk 0:02:59.9]} 2. d4 {[%clk 0:02:59.9]}
2... d5 {[%clk 0:03:00.8]} 3. Nc3 {[%clk 0:02:59.1]} 3... dxe4 {[%clk
0:03:00.7]} 4. Nxe4 {[%clk 0:02:59.7]} 4... Nf6 {[%clk 0:03:00.6]} 5. Nxf6+
{[%clk 0:02:59.2]} 5... exf6 {[%clk 0:03:01.5]} 6. Bc4 {[%clk 0:02:58.9]} 6...
Bd6 {[%clk 0:03:02.4]} 7. Qe2+ {[%clk 0:02:58.8]} 7... Qe7 {[%clk 0:03:01.9]} 8.
Qxe7+ {[%clk 0:02:58.9]} 8... Kxe7 {[%clk 0:03:02.8]} 9. Ne2 {[%clk 0:02:59.2]}
9... Be6 {[%clk 0:03:03.7]} 10. Bd3 {[%clk 0:02:58.6]} 10... Nd7 {[%clk
0:03:01.7]} 11. Bf4 {[%clk 0:02:57.1]} 11... Nb6 {[%clk 0:02:59.5]} 12. O-O-O
{[%clk 0:02:51.8]} 12... a5 {[%clk 0:02:55]} 13. Bxd6+ {[%clk 0:02:45.9]} 13...
Kxd6 {[%clk 0:02:55.3]} 14. b3 {[%clk 0:02:38.6]} 14... a4 {[%clk 0:02:54.4]}
15. c4 {[%clk 0:02:36.9]} 15... Kc7 {[%clk 0:02:48.1]} 16. Kb2 {[%clk
0:02:36.4]} 16... axb3 {[%clk 0:02:46.9]} 17. axb3 {[%clk 0:02:36.4]} 17... Ra5
{[%clk 0:02:44.5]} 18. f4 {[%clk 0:02:20.1]} 18... Rha8 {[%clk 0:02:42.4]} 19.
Bb1 {[%clk 0:02:17.9]} 19... Bg4 {[%clk 0:02:36.5]} 20. Rd2 {[%clk 0:02:15.6]}
20... Re8 {[%clk 0:02:27.6]} 21. Nc3 {[%clk 0:02:15.4]} 21... Re7 {[%clk
0:02:17.9]} 22. h3 {[%clk 0:02:01.2]} 22... Bf5 {[%clk 0:02:17.9]} 23. d5 {[%clk
0:02:01.6]} 23... cxd5 {[%clk 0:02:07.2]} 24. cxd5 {[%clk 0:01:59.7]} 1-0

[Event "Early-Titled-Tuesday-Blitz-June-18-2024"]
[Site "Chess.com"]
[Date "2024.06.18"]
[Round "4"]
[White "NovakRatko"]
[Black "azikom"]
[Result "0-1"]
[WhiteElo "2431"]
[BlackElo "2698"]
[TimeControl "180+1"]
[EndTime "8:37:18 PDT"]
[Termination "azikom won by resignation"]

1. d4 {[%clk 0:02:59.4]} 1... Nf6 {[%clk 0:02:49.5]} 2. c4 {[%clk 0:02:59.4]}
2... c5 {[%clk 0:02:50]} 3. dxc5 {[%clk 0:02:59.3]} 3... Qa5+ {[%clk 0:02:49.2]}
4. Nc3 {[%clk 0:02:59.1]} 4... g6 {[%clk 0:02:47.6]} 5. e4 {[%clk 0:02:58.7]}
5... Nxe4 {[%clk 0:02:43.4]} 6. Qd4 {[%clk 0:02:48.2]} 6... Nf6 {[%clk
0:02:42.8]} 7. Bd2 {[%clk 0:02:46.4]} 7... Nc6 {[%clk 0:02:32.8]} 8. Nd5 {[%clk
0:02:32.3]} 8... Nxd4 {[%clk 0:02:29.8]} 9. Bxa5 {[%clk 0:02:31.2]} 9... Nxd5
{[%clk 0:02:26.5]} 10. O-O-O {[%clk 0:02:30.9]} 10... Nc6 {[%clk 0:02:18.6]} 11.
Bd2 {[%clk 0:02:19.5]} 11... Nf6 {[%clk 0:02:17.2]} 12. b4 {[%clk 0:02:18.4]}
12... Bg7 {[%clk 0:02:16.9]} 13. a4 {[%clk 0:02:18.9]} 13... a5 {[%clk
0:02:15.7]} 14. b5 {[%clk 0:02:17.8]} 14... Nb4 {[%clk 0:02:16]} 15. Nf3 {[%clk
0:02:16.4]} 15... Ne4 {[%clk 0:02:13.9]} 16. Be3 {[%clk 0:02:14.7]} 16... Nc3
{[%clk 0:02:14]} 17. Re1 {[%clk 0:02:10.5]} 17... O-O {[%clk 0:02:09.8]} 18. Bd4
{[%clk 0:02:10.3]} 18... Bxd4 {[%clk 0:02:08.3]} 19. Nxd4 {[%clk 0:02:10.4]}
19... Nxa4 {[%clk 0:02:07.9]} 20. Rxe7 {[%clk 0:02:10]} 20... Nxc5 {[%clk
0:02:07.5]} 21. h4 {[%clk 0:02:05.9]} 21... b6 {[%clk 0:02:00.7]} 22. Kb2 {[%clk
0:02:05]} 22... Bb7 {[%clk 0:02:00.5]} 23. h5 {[%clk 0:02:01.5]} 23... Rae8
{[%clk 0:02:00]} 24. Rxe8 {[%clk 0:01:59.7]} 24... Rxe8 {[%clk 0:02:00.9]} 25.
hxg6 {[%clk 0:02:00.6]} 25... hxg6 {[%clk 0:01:59.9]} 0-1

[Event "Early-Titled-Tuesday-Blitz-June-18-2024"]
[Site "Chess.com"]
[Date "2024.06.18"]
[Round "4"]
[White "BigAl"]
[Black "Bob_2004"]
[Result "0-1"]
[WhiteElo "2553"]
[BlackElo "2764"]
[TimeControl "180+1"]
[EndTime "8:38:05 PDT"]
[Termination "Bob_2004 won by resignation"]

1. Nf3 {[%clk 0:03:00]} 1... d5 {[%clk 0:03:00.1]} 2. g3 {[%clk 0:03:00.9]} 2...
Nc6 {[%clk 0:03:00.5]} 3. Bg2 {[%clk 0:03:01.8]} 3... e5 {[%clk 0:03:01.1]} 4.
d3 {[%clk 0:03:02.7]} 4... Nf6 {[%clk 0:03:01.7]} 5. O-O {[%clk 0:03:03.6]} 5...
Be7 {[%clk 0:03:01.1]} 6. a3 {[%clk 0:03:03.1]} 6... a5 {[%clk 0:03:01]} 7. b3
{[%clk 0:03:02]} 7... O-O {[%clk 0:02:58.4]} 8. Bb2 {[%clk 0:02:58.8]} 8... d4
{[%clk 0:02:58.9]} 9. c3 {[%clk 0:02:56.5]} 9... Re8 {[%clk 0:02:50.7]} 10. Nbd2
{[%clk 0:02:56.6]} 10... Bc5 {[%clk 0:02:29.5]} 11. cxd4 {[%clk 0:02:54.1]}
11... exd4 {[%clk 0:02:29.6]} 12. Rc1 {[%clk 0:02:51.3]} 12... Qe7 {[%clk
0:02:29.5]} 13. Rxc5 {[%clk 0:02:39.6]} 13... Qxc5 {[%clk 0:02:29.1]} 14. Re1
{[%clk 0:02:38.6]} 14... Bf5 {[%clk 0:02:20.1]} 15. Qa1 {[%clk 0:02:38.7]} 15...
Rad8 {[%clk 0:02:17.6]} 16. Kf1 {[%clk 0:02:39]} 16... h6 {[%clk 0:02:14.8]} 17.
Nh4 {[%clk 0:02:34.6]} 17... Be6 {[%clk 0:02:12.9]} 18. Rc1 {[%clk 0:02:34]}
18... Qd6 {[%clk 0:02:05.7]} 19. Nc4 {[%clk 0:02:27.8]} 19... Qd7 {[%clk
0:02:04.5]} 20. Nd2 {[%clk 0:02:14.7]} 20... Bh3 {[%clk 0:02:03.5]} 21. Re1
{[%clk 0:02:10.3]} 21... Bxg2+ {[%clk 0:01:33.9]} 22. Kxg2 {[%clk 0:02:11.2]}
22... Ne5 {[%clk 0:01:34.5]} 23. Qc1 {[%clk 0:01:58.7]} 23... Qd5+ {[%clk
0:01:29.5]} 24. Kg1 {[%clk 0:01:58.7]} 24... c6 {[%clk 0:01:26.9]} 25. Qc2
{[%clk 0:01:50]} 25... Re6 {[%clk 0:01:21.5]} 26. Qc4 {[%clk 0:01:44.8]} 26...
Nxc4 {[%clk 0:01:21.4]} 0-1

[Event "Early-Titled-Tuesday-Blitz-June-18-2024"]
[Site "Chess.com"]
[Date "2024.06.18"]
[Round "4"]
[White "PapaieDudu"]
[Black "cmunda"]
[Result "0-1"]
[WhiteElo "2334"]
[BlackElo "2190"]
[TimeControl "180+1"]
[EndTime "8:38:15 PDT"]
[Termination "cmunda won by resignation"]

1. Nf3 {[%clk 0:03:00.4]} 1... d5 {[%clk 0:03:00.1]} 2. d4 {[%clk 0:03:00.2]}
2... g6 {[%clk 0:02:59]} 3. c4 {[%clk 0:03:01.1]} 3... Bg7 {[%clk 0:02:59.9]} 4.
Nc3 {[%clk 0:03:01.4]} 4... Nf6 {[%clk 0:02:58.7]} 5. cxd5 {[%clk 0:03:01.9]}
5... Nxd5 {[%clk 0:02:58.5]} 6. e4 {[%clk 0:03:02.8]} 6... Nxc3 {[%clk
0:02:57.9]} 7. bxc3 {[%clk 0:03:03.7]} 7... O-O {[%clk 0:02:58.7]} 8. Be3 {[%clk
0:03:04.6]} 8... Nd7 {[%clk 0:02:58.7]} 9. Be2 {[%clk 0:03:05.5]} 9... c5 {[%clk
0:02:59.1]} 10. O-O {[%clk 0:03:06.4]} 10... cxd4 {[%clk 0:02:58.2]} 11. cxd4
{[%clk 0:03:07.3]} 11... b6 {[%clk 0:02:56.9]} 12. d5 {[%clk 0:03:06.9]} 12...
Bb7 {[%clk 0:02:56.5]} 13. Nd4 {[%clk 0:03:06.7]} 13... Rc8 {[%clk 0:02:55.6]}
14. f4 {[%clk 0:03:07.1]} 14... Nc5 {[%clk 0:02:55.6]} 15. Bf3 {[%clk 0:03:07]}
15... e6 {[%clk 0:02:52.2]} 16. dxe6 {[%clk 0:02:53.3]} 16... Nxe6 {[%clk
0:02:51.8]} 17. Nxe6 {[%clk 0:02:53.3]} 17... fxe6 {[%clk 0:02:51.9]} 18. Qb3
{[%clk 0:02:52]} 18... Bxa1 {[%clk 0:02:46.7]} 19. Qxe6+ {[%clk 0:02:51.6]}
19... Rf7 {[%clk 0:02:46.3]} 20. Rxa1 {[%clk 0:02:51.2]} 20... Qe7 {[%clk
0:02:40.2]} 21. Qb3 {[%clk 0:02:34.9]} 21... Bxe4 {[%clk 0:02:35.8]} 22. Bg4
{[%clk 0:02:35.1]} 22... Bd5 {[%clk 0:02:22.2]} 23. Qxd5 {[%clk 0:02:23.7]}
23... Qxe3+ {[%clk 0:02:22.1]} 24. Kf1 {[%clk 0:02:24.1]} 24... Qxf4+ {[%clk
0:02:07.4]} 25. Bf3 {[%clk 0:02:24.2]} 25... Qxh2 {[%clk 0:02:01.2]} 26. Re1
{[%clk 0:02:11.2]} 26... Qh1+ {[%clk 0:01:50.4]} 27. Kf2 {[%clk 0:02:10.6]}
27... Rc2+ {[%clk 0:01:48.4]} 28. Re2 {[%clk 0:02:08]} 28... Qh4+ {[%clk
0:01:36]} 29. Ke3 {[%clk 0:01:52.3]} 29... Qe7+ {[%clk 0:01:30.7]} 30. Kd3
{[%clk 0:01:49.4]} 30... Rxe2 {[%clk 0:01:27]} 31. Bxe2 {[%clk 0:01:48.9]} 31...
Qd7 {[%clk 0:01:24.9]} 32. Bf3 {[%clk 0:01:48.4]} 32... Qxd5+ {[%clk 0:01:25]}
33. Bxd5 {[%clk 0:01:48.8]} 33... Kg7 {[%clk 0:01:25.5]} 34. Bxf7 {[%clk
0:01:48.9]} 34... Kxf7 {[%clk 0:01:25.8]} 0-1

[Event "Early-Titled-Tuesday-Blitz-June-18-2024"]
[Site "Chess.com"]
[Date "2024.06.18"]
[Round "4"]
[White "MaestroCheck"]
[Black "artooon"]
[Result "0-1"]
[WhiteElo "2641"]
[BlackElo "3103"]
[TimeControl "180+1"]
[EndTime "8:38:24 PDT"]
[Termination "artooon won by resignation"]

1. e4 {[%clk 0:02:30.8]} 1... c5 {[%clk 0:02:59.7]} 2. Nc3 {[%clk 0:02:29.2]}
2... Nc6 {[%clk 0:03:00]} 3. Bb5 {[%clk 0:02:29.1]} 3... Nd4 {[%clk 0:02:59.9]}
4. Nf3 {[%clk 0:02:29.8]} 4... Nf6 {[%clk 0:02:58.9]} 5. e5 {[%clk 0:02:27.9]}
5... Nxb5 {[%clk 0:02:58.8]} 6. Nxb5 {[%clk 0:02:28.8]} 6... Nd5 {[%clk
0:02:59.4]} 7. Ng5 {[%clk 0:02:29.3]} 7... f6 {[%clk 0:02:50.9]} 8. Ne4 {[%clk
0:02:25.4]} 8... Qb6 {[%clk 0:02:45.9]} 9. Nbc3 {[%clk 0:02:12.5]} 9... Qe6
{[%clk 0:02:45.6]} 10. Nxc5 {[%clk 0:01:58.6]} 10... Qxe5+ {[%clk 0:02:42.8]}
11. Qe2 {[%clk 0:01:59.2]} 11... Nxc3 {[%clk 0:02:34.7]} 12. dxc3 {[%clk
0:01:58.3]} 12... Qxc5 {[%clk 0:02:34]} 13. Be3 {[%clk 0:01:50.4]} 13... Qc6
{[%clk 0:02:33.6]} 14. f3 {[%clk 0:01:49.8]} 14... b6 {[%clk 0:02:31.8]} 15.
O-O-O {[%clk 0:01:50.2]} 15... e6 {[%clk 0:02:31.8]} 16. Rhe1 {[%clk 0:01:48.6]}
16... Be7 {[%clk 0:02:31.7]} 17. Qd2 {[%clk 0:01:48.7]} 17... Bb7 {[%clk
0:02:30.6]} 18. Bd4 {[%clk 0:01:47.2]} 18... O-O {[%clk 0:02:30.4]} 19. h4
{[%clk 0:01:46.8]} 19... d5 {[%clk 0:02:27.4]} 20. h5 {[%clk 0:01:45.8]} 20...
h6 {[%clk 0:02:28]} 21. g4 {[%clk 0:01:45.3]} 21... e5 {[%clk 0:02:27.7]} 22.
Be3 {[%clk 0:01:45.4]} 22... Bc5 {[%clk 0:02:27.4]} 23. Bxh6 {[%clk 0:01:45.1]}
23... gxh6 {[%clk 0:02:28]} 24. Qxh6 {[%clk 0:01:45]} 24... Rf7 {[%clk
0:02:26.8]} 25. g5 {[%clk 0:01:40.8]} 25... fxg5 {[%clk 0:02:27]} 26. Qxg5+
{[%clk 0:01:41.1]} 26... Rg7 {[%clk 0:02:26.4]} 27. Qxe5 {[%clk 0:01:41.3]}
27... Qd6 {[%clk 0:02:26.2]} 28. Qf5 {[%clk 0:01:41.1]} 28... Rf8 {[%clk
0:02:25.7]} 29. Qd3 {[%clk 0:01:41.4]} 29... Qf4+ {[%clk 0:02:25.1]} 30. Kb1
{[%clk 0:01:41.4]} 30... Qf5 {[%clk 0:02:25.2]} 31. Qe2 {[%clk 0:01:40.4]} 31...
Qxf3 {[%clk 0:02:24.3]} 32. Qe6+ {[%clk 0:01:40]} 32... Qf7 {[%clk 0:02:25]} 33.
Qh6 {[%clk 0:01:40.3]} 33... Qf6 {[%clk 0:02:18.1]} 34. Qd2 {[%clk 0:01:39.5]}
34... Qf4 {[%clk 0:02:17.7]} 35. Qd3 {[%clk 0:01:39]} 35... Rg3 {[%clk
0:02:13.3]} 36. Qb5 {[%clk 0:01:36.9]} 36... Qf5 {[%clk 0:02:07.9]} 37. Rf1
{[%clk 0:01:36.7]} 37... Rf3 {[%clk 0:02:06]} 38. Rh1 {[%clk 0:01:35.5]} 38...
Rf2 {[%clk 0:02:05.9]} 39. h6 {[%clk 0:01:35.4]} 39... Qxc2+ {[%clk 0:02:04.4]}
40. Ka1 {[%clk 0:01:35.9]} 40... Kh8 {[%clk 0:02:03.1]} 41. Rc1 {[%clk
0:01:34.2]} 41... Qe2 {[%clk 0:02:02.5]} 42. Qb3 {[%clk 0:01:34]} 42... Rf1
{[%clk 0:01:54.1]} 0-1

[Event "Early-Titled-Tuesday-Blitz-June-18-2024"]
[Site "Chess.com"]
[Date "2024.06.18"]
[Round "4"]
[White "ChristopherYoo"]
[Black "HATilay"]
[Result "1-0"]
[WhiteElo "3020"]
[BlackElo "2630"]
[TimeControl "180+1"]
[EndTime "8:38:25 PDT"]
[Termination "ChristopherYoo won by resignation"]

1. e4 {[%clk 0:03:00.9]} 1... c5 {[%clk 0:02:58.6]} 2. Nf3 {[%clk 0:03:01]} 2...
d6 {[%clk 0:02:58.9]} 3. d4 {[%clk 0:03:01.4]} 3... cxd4 {[%clk 0:02:59.8]} 4.
Nxd4 {[%clk 0:03:02.1]} 4... Nf6 {[%clk 0:03:00.2]} 5. Nc3 {[%clk 0:03:02.7]}
5... a6 {[%clk 0:03:00.3]} 6. a3 {[%clk 0:02:52.9]} 6... Nc6 {[%clk 0:02:57.7]}
7. Bg5 {[%clk 0:02:51.8]} 7... e6 {[%clk 0:02:57.1]} 8. Qd2 {[%clk 0:02:51.6]}
8... Be7 {[%clk 0:02:49.9]} 9. O-O-O {[%clk 0:02:50.5]} 9... Bd7 {[%clk
0:02:49.5]} 10. f4 {[%clk 0:02:46.9]} 10... b5 {[%clk 0:02:42.7]} 11. Be2 {[%clk
0:02:41.8]} 11... Qb6 {[%clk 0:02:28.1]} 12. Bf3 {[%clk 0:02:38.1]} 12... Rb8
{[%clk 0:02:10]} 13. Nxc6 {[%clk 0:02:25.4]} 13... Bxc6 {[%clk 0:02:05.8]} 14.
e5 {[%clk 0:02:22.9]} 14... Bxf3 {[%clk 0:01:34]} 15. gxf3 {[%clk 0:02:19.7]}
15... dxe5 {[%clk 0:00:40.4]} 16. fxe5 {[%clk 0:02:18.6]} 16... Nd5 {[%clk
0:00:40]} 17. Nxd5 {[%clk 0:02:15.7]} 17... exd5 {[%clk 0:00:33.7]} 18. Bxe7
{[%clk 0:02:14.6]} 18... Kxe7 {[%clk 0:00:33.7]} 19. Qg5+ {[%clk 0:02:15.1]}
19... Kf8 {[%clk 0:00:22.4]} 20. Rxd5 {[%clk 0:02:14.5]} 20... h6 {[%clk
0:00:22.3]} 21. Qf4 {[%clk 0:02:12.5]} 1-0

[Event "Early-Titled-Tuesday-Blitz-June-18-2024"]
[Site "Chess.com"]
[Date "2024.06.18"]
[Round "4"]
[White "fourqueens13"]
[Black "Arteler"]
[Result "1-0"]
[WhiteElo "2405"]
[BlackElo "2201"]
[TimeControl "180+1"]
[EndTime "8:38:29 PDT"]
[Termination "fourqueens13 won on time"]

1. e4 {[%clk 0:02:58.7]} 1... e6 {[%clk 0:02:52.7]} 2. d4 {[%clk 0:02:58.1]}
2... d5 {[%clk 0:02:52.2]} 3. Nc3 {[%clk 0:02:57.9]} 3... Nf6 {[%clk 0:02:52]}
4. e5 {[%clk 0:02:54.8]} 4... Nfd7 {[%clk 0:02:52.5]} 5. f4 {[%clk 0:02:48.2]}
5... c5 {[%clk 0:02:52.4]} 6. Nf3 {[%clk 0:02:46.6]} 6... Nc6 {[%clk 0:02:52.3]}
7. Be3 {[%clk 0:02:45.9]} 7... cxd4 {[%clk 0:02:29.5]} 8. Nxd4 {[%clk
0:02:45.1]} 8... a6 {[%clk 0:02:30.2]} 9. Qd2 {[%clk 0:02:44.3]} 9... Be7 {[%clk
0:02:23.7]} 10. O-O-O {[%clk 0:02:43.2]} 10... Qa5 {[%clk 0:02:00.1]} 11. Nb3
{[%clk 0:02:37.5]} 11... Qb4 {[%clk 0:01:56.6]} 12. a3 {[%clk 0:02:34.5]} 12...
d4 {[%clk 0:00:13.6]} 13. axb4 {[%clk 0:02:31.1]} 13... dxe3 {[%clk 0:00:06.2]}
14. Qxe3 {[%clk 0:02:31.2]} 14... Nxb4 {[%clk 0:00:06]} 15. Ne4 {[%clk
0:02:27.3]} 15... Nd5 {[%clk 0:00:04.7]} 16. Qf3 {[%clk 0:02:27.1]} 16... Kf8
{[%clk 0:00:02.7]} 17. c4 {[%clk 0:02:25.2]} 17... Nb4 {[%clk 0:00:02.6]} 18.
Nd6 {[%clk 0:02:23.2]} 18... b5 {[%clk 0:00:02.8]} 19. Qxa8 {[%clk 0:02:20.7]}
1-0

[Event "Early-Titled-Tuesday-Blitz-June-18-2024"]
[Site "Chess.com"]
[Date "2024.06.18"]
[Round "4"]
[White "RebelJohnny"]
[Black "RobertoJBM"]
[Result "1-0"]
[WhiteElo "2597"]
[BlackElo "2797"]
[TimeControl "180+1"]
[EndTime "8:38:33 PDT"]
[Termination "RebelJohnny won by resignation"]

1. e4 {[%clk 0:03:00.9]} 1... c6 {[%clk 0:03:00.1]} 2. d4 {[%clk 0:03:00.5]}
2... d5 {[%clk 0:03:01]} 3. Nd2 {[%clk 0:03:01]} 3... dxe4 {[%clk 0:03:01.3]} 4.
Nxe4 {[%clk 0:03:01.8]} 4... Nd7 {[%clk 0:03:01.9]} 5. Ng5 {[%clk 0:03:01.5]}
5... Ngf6 {[%clk 0:03:02.1]} 6. Bd3 {[%clk 0:02:53.4]} 6... e6 {[%clk
0:03:01.5]} 7. N1f3 {[%clk 0:02:53.2]} 7... Bd6 {[%clk 0:02:59.2]} 8. Qe2 {[%clk
0:02:50.6]} 8... h6 {[%clk 0:02:56.5]} 9. Ne4 {[%clk 0:02:51]} 9... Nxe4 {[%clk
0:02:55.7]} 10. Qxe4 {[%clk 0:02:51.9]} 10... Qc7 {[%clk 0:02:55]} 11. O-O
{[%clk 0:02:51.1]} 11... b6 {[%clk 0:02:52.8]} 12. Qg4 {[%clk 0:02:51.5]} 12...
g5 {[%clk 0:02:50.5]} 13. Qh3 {[%clk 0:02:43]} 13... Rg8 {[%clk 0:02:48.7]} 14.
Re1 {[%clk 0:02:42.4]} 14... g4 {[%clk 0:02:48.6]} 15. Qxh6 {[%clk 0:02:40.4]}
15... gxf3 {[%clk 0:02:48.4]} 16. Rxe6+ {[%clk 0:02:40.3]} 16... fxe6 {[%clk
0:02:47.1]} 17. Qxe6+ {[%clk 0:02:41.2]} 17... Kf8 {[%clk 0:02:47.4]} 18. Bh6+
{[%clk 0:02:33.7]} 18... Rg7 {[%clk 0:02:47.3]} 19. Bxg7+ {[%clk 0:01:29.2]}
19... Kxg7 {[%clk 0:02:44.7]} 20. Qg6+ {[%clk 0:01:29.7]} 20... Kf8 {[%clk
0:02:40.3]} 21. Qh6+ {[%clk 0:01:29.9]} 21... Ke7 {[%clk 0:01:49.1]} 22. Re1+
{[%clk 0:01:25.2]} 22... Ne5 {[%clk 0:01:31.1]} 23. dxe5 {[%clk 0:01:20.5]}
23... Bc5 {[%clk 0:01:22]} 24. Qf6+ {[%clk 0:01:16.1]} 24... Kd7 {[%clk
0:01:21.7]} 25. e6+ {[%clk 0:01:13]} 1-0